[Event "Titled Tuesday Blitz April 05 Late 2022"]
[White "Ronka, Erik"]
[Black "Ward, Ieuan C"]
[WhiteFideId "505080"]
[BlackFideId "406627"]
[WhiteElo "2516"]
[BlackElo "2303"]
[Result "1-0"]
[Round "04"]
[TimeControl "180+1"]
[Date "2022.04.06"]
[WhiteClock "0:00:18"]
[BlackClock "0:00:04"]

1. e4 {[%clk 0:03:00]}  c5 {[%clk 0:03:00]} 2. Nf3 {[%clk 0:03:01]}  d6 {[%clk 0:03:00]} 3. d4 {[%clk 0:03:02]}  cxd4 {[%clk 0:03:01]} 4. Nxd4 {[%clk 0:03:01]}  Nf6 {[%clk 0:03:02]} 5. Nc3 {[%clk 0:03:02]}  a6 {[%clk 0:03:02]} 6. Nb3 {[%clk 0:03:03]}  e5 {[%clk 0:02:58]} 7. Bg5 {[%clk 0:02:55]}  Be7 {[%clk 0:02:58]} 8. Bxf6 {[%clk 0:02:49]}  Bxf6 {[%clk 0:02:57]} 9. Nd5 {[%clk 0:02:38]}  O-O {[%clk 0:02:56]} 10. Qd3 {[%clk 0:02:38]}  Be6 {[%clk 0:02:56]} 11. O-O-O {[%clk 0:02:36]}  Bxd5 {[%clk 0:02:50]} 12. Qxd5 {[%clk 0:02:37]}  Qb6 {[%clk 0:02:33]} 13. f3 {[%clk 0:02:26]}  Rd8 {[%clk 0:02:33]} 14. Bc4 {[%clk 0:02:23]}  Rd7 {[%clk 0:02:32]} 15. Kb1 {[%clk 0:02:08]}  Qd8 {[%clk 0:02:14]} 16. Qd3 {[%clk 0:02:03]}  Nc6 {[%clk 0:02:02]} 17. Bd5 {[%clk 0:02:01]}  Rc8 {[%clk 0:01:52]} 18. c3 {[%clk 0:01:57]}  b5 {[%clk 0:01:44]} 19. Qe2 {[%clk 0:01:52]}  Ne7 {[%clk 0:01:26]} 20. Rd3 {[%clk 0:01:48]}  Ng6 {[%clk 0:01:11]} 21. g3 {[%clk 0:01:46]}  h5 {[%clk 0:01:05]} 22. Rhd1 {[%clk 0:01:40]}  h4 {[%clk 0:01:04]} 23. Qf2 {[%clk 0:01:36]}  Be7 {[%clk 0:01:03]} 24. f4 {[%clk 0:01:22]}  hxg3 {[%clk 0:00:46]} 25. hxg3 {[%clk 0:01:21]}  exf4 {[%clk 0:00:46]} 26. gxf4 {[%clk 0:01:22]}  Bh4 {[%clk 0:00:42]} 27. Qf3 {[%clk 0:01:19]}  Qf6 {[%clk 0:00:43]} 28. Rf1 {[%clk 0:01:16]}  b4 {[%clk 0:00:36]} 29. c4 {[%clk 0:01:14]}  Ra7 {[%clk 0:00:30]} 30. Qg4 {[%clk 0:01:12]}  Re8 {[%clk 0:00:25]} 31. Nd4 {[%clk 0:01:11]}  Ne7 {[%clk 0:00:12]} 32. Nf3 {[%clk 0:00:51]}  Nxd5 {[%clk 0:00:11]} 33. Rxd5 {[%clk 0:00:35]}  Rxe4 {[%clk 0:00:04]} 34. Qxh4 {[%clk 0:00:18]} 1-0


[Site "https://www.chess.com"]

[Event "Titled Tuesday Blitz April 05 Late 2022"]
[White "Rottenwohrer Suarez, Juan"]
[Black "Ricaurte Lopez, Juan Carlos"]
[WhiteFideId "32068182"]
[BlackFideId "3600327"]
[WhiteElo "2158"]
[BlackElo "2209"]
[Result "1/2-1/2"]
[Round "04"]
[TimeControl "180+1"]
[Date "2022.04.06"]
[WhiteClock "0:00:03"]
[BlackClock "0:00:03"]

1. d4 {[%clk 0:03:00]}  d5 {[%clk 0:02:57]} 2. c4 {[%clk 0:03:01]}  e6 {[%clk 0:02:55]} 3. Nf3 {[%clk 0:02:44]}  c5 {[%clk 0:02:44]} 4. cxd5 {[%clk 0:02:36]}  exd5 {[%clk 0:02:41]} 5. g3 {[%clk 0:02:31]}  Nc6 {[%clk 0:02:33]} 6. Bg2 {[%clk 0:02:31]}  Nf6 {[%clk 0:02:28]} 7. O-O {[%clk 0:02:23]}  Be7 {[%clk 0:02:27]} 8. dxc5 {[%clk 0:02:19]}  Bxc5 {[%clk 0:02:23]} 9. a3 {[%clk 0:02:12]}  O-O {[%clk 0:02:17]} 10. b4 {[%clk 0:02:06]}  Be7 {[%clk 0:02:16]} 11. Nc3 {[%clk 0:01:59]}  Be6 {[%clk 0:02:09]} 12. Bb2 {[%clk 0:01:47]}  Rc8 {[%clk 0:02:02]} 13. Rc1 {[%clk 0:01:41]}  a6 {[%clk 0:01:53]} 14. Na4 {[%clk 0:01:38]}  Ne4 {[%clk 0:01:47]} 15. Ne5 {[%clk 0:01:34]}  Nxe5 {[%clk 0:01:40]} 16. Rxc8 {[%clk 0:01:32]}  Qxc8 {[%clk 0:01:30]} 17. Bxe5 {[%clk 0:01:32]}  Bf6 {[%clk 0:01:24]} 18. Bxf6 {[%clk 0:01:32]}  Nxf6 {[%clk 0:01:22]} 19. Nc5 {[%clk 0:01:29]}  Qc6 {[%clk 0:01:18]} 20. Qd4 {[%clk 0:01:21]}  Rc8 {[%clk 0:01:07]} 21. h3 {[%clk 0:01:21]}  a5 {[%clk 0:01:04]} 22. Rc1 {[%clk 0:01:16]}  axb4 {[%clk 0:00:57]} 23. axb4 {[%clk 0:01:17]}  Qb5 {[%clk 0:00:39]} 24. Bf1 {[%clk 0:01:05]}  b6 {[%clk 0:00:32]} 25. Nd3 {[%clk 0:01:03]}  Rxc1 {[%clk 0:00:17]} 26. Nxc1 {[%clk 0:01:04]}  Qc4 {[%clk 0:00:14]} 27. Qxb6 {[%clk 0:00:48]}  h6 {[%clk 0:00:13]} 28. Nd3 {[%clk 0:00:45]}  Ne4 {[%clk 0:00:13]} 29. Nf4 {[%clk 0:00:33]}  Qc1 {[%clk 0:00:07]} 30. Nxe6 {[%clk 0:00:19]}  Nd2 {[%clk 0:00:07]} 31. Qd8+ {[%clk 0:00:18]}  Kh7 {[%clk 0:00:05]} 32. Nf8+ {[%clk 0:00:19]}  Kg8 {[%clk 0:00:05]} 33. Ne6+ {[%clk 0:00:03]}  Kh7 {[%clk 0:00:04]} 34. Nf8+ {[%clk 0:00:03]}  Kg8 {[%clk 0:00:03]} 35. Ne6+ {[%clk 0:00:03]} 1/2-1/2


[Site "https://www.chess.com"]

[Event "Titled Tuesday Blitz April 05 Late 2022"]
[White "Rytenko, Vsevolod"]
[Black "Delaney, Killian"]
[WhiteFideId "14133040"]
[BlackFideId "2501570"]
[WhiteElo "2337"]
[BlackElo "2599"]
[Result "1-0"]
[Round "04"]
[TimeControl "180+1"]
[Date "2022.04.06"]
[WhiteClock "0:00:57"]
[BlackClock "0:00:07"]

1. e4 {[%clk 0:02:56]}  g6 {[%clk 0:02:54]} 2. d4 {[%clk 0:02:55]}  Bg7 {[%clk 0:02:54]} 3. Nc3 {[%clk 0:02:56]}  d6 {[%clk 0:02:53]} 4. Be3 {[%clk 0:02:56]}  a6 {[%clk 0:02:53]} 5. Qd2 {[%clk 0:02:56]}  b5 {[%clk 0:02:53]} 6. h4 {[%clk 0:02:56]}  Bb7 {[%clk 0:02:50]} 7. h5 {[%clk 0:02:56]}  b4 {[%clk 0:02:38]} 8. Nd5 {[%clk 0:02:55]}  a5 {[%clk 0:02:38]} 9. h6 {[%clk 0:02:53]}  Bf8 {[%clk 0:02:38]} 10. Bd3 {[%clk 0:02:47]}  e6 {[%clk 0:02:36]} 11. Nf4 {[%clk 0:02:46]}  Nd7 {[%clk 0:02:35]} 12. Nf3 {[%clk 0:02:42]}  Ngf6 {[%clk 0:02:33]} 13. Ng5 {[%clk 0:02:33]}  e5 {[%clk 0:02:21]} 14. Ne2 {[%clk 0:02:23]}  c6 {[%clk 0:01:27]} 15. Bc4 {[%clk 0:02:15]}  d5 {[%clk 0:01:26]} 16. exd5 {[%clk 0:02:16]}  cxd5 {[%clk 0:01:27]} 17. Bb5 {[%clk 0:02:15]}  Ng4 {[%clk 0:01:11]} 18. dxe5 {[%clk 0:02:12]}  Bxh6 {[%clk 0:01:01]} 19. e6 {[%clk 0:01:56]}  fxe6 {[%clk 0:00:58]} 20. Rxh6 {[%clk 0:01:51]}  Nxh6 {[%clk 0:00:58]} 21. Nxe6 {[%clk 0:01:51]}  Qe7 {[%clk 0:00:49]} 22. Nc7+ {[%clk 0:01:25]}  Kf7 {[%clk 0:00:49]} 23. Nxa8 {[%clk 0:01:26]}  Nf5 {[%clk 0:00:34]} 24. Bxd7 {[%clk 0:01:16]}  Qxd7 {[%clk 0:00:26]} 25. Nb6 {[%clk 0:01:16]}  Qb5 {[%clk 0:00:19]} 26. Nd4 {[%clk 0:01:10]}  Nxd4 {[%clk 0:00:19]} 27. Qxd4 {[%clk 0:01:09]}  Re8 {[%clk 0:00:18]} 28. O-O-O {[%clk 0:01:08]}  Re4 {[%clk 0:00:18]} 29. Qh8 {[%clk 0:01:04]}  Re7 {[%clk 0:00:12]} 30. Qxh7+ {[%clk 0:01:02]}  Kf6 {[%clk 0:00:09]} 31. Bd4+ {[%clk 0:00:59]}  Kf5 {[%clk 0:00:07]} 32. Qxe7 {[%clk 0:00:57]} 1-0


[Site "https://www.chess.com"]

[Event "Titled Tuesday Blitz April 05 Late 2022"]
[White "Sliwicki, Damian"]
[Black "Djordjevic, Dejan N"]
[WhiteFideId "1127128"]
[BlackFideId "913316"]
[WhiteElo "2084"]
[BlackElo "2262"]
[Result "1-0"]
[Round "04"]
[TimeControl "180+1"]
[Date "2022.04.06"]
[WhiteClock "0:00:27"]
[BlackClock "0:00:02"]

1. e4 {[%clk 0:03:00]}  c5 {[%clk 0:02:01]} 2. Nf3 {[%clk 0:02:58]}  Nc6 {[%clk 0:02:00]} 3. b3 {[%clk 0:02:53]}  d6 {[%clk 0:01:54]} 4. Bb2 {[%clk 0:02:52]}  Nf6 {[%clk 0:01:54]} 5. Bd3 {[%clk 0:02:37]}  Bg4 {[%clk 0:01:49]} 6. h3 {[%clk 0:02:34]}  Bh5 {[%clk 0:01:49]} 7. Nc3 {[%clk 0:02:31]}  a6 {[%clk 0:01:48]} 8. g4 {[%clk 0:02:28]}  Bg6 {[%clk 0:01:48]} 9. Qe2 {[%clk 0:02:25]}  Nb4 {[%clk 0:01:31]} 10. O-O-O {[%clk 0:02:03]}  e5 {[%clk 0:01:14]} 11. Bc4 {[%clk 0:01:55]}  b5 {[%clk 0:01:13]} 12. Bd5 {[%clk 0:01:52]}  Nfxd5 {[%clk 0:01:09]} 13. Nxd5 {[%clk 0:01:53]}  Nxa2+ {[%clk 0:00:55]} 14. Kb1 {[%clk 0:01:53]}  Qa5 {[%clk 0:00:42]} 15. d4 {[%clk 0:01:28]}  cxd4 {[%clk 0:00:39]} 16. Nxd4 {[%clk 0:01:27]}  exd4 {[%clk 0:00:37]} 17. e5 {[%clk 0:01:28]}  Nc3+ {[%clk 0:00:17]} 18. Bxc3 {[%clk 0:01:24]}  dxc3 {[%clk 0:00:17]} 19. exd6+ {[%clk 0:01:25]}  Kd7 {[%clk 0:00:18]} 20. f4 {[%clk 0:01:10]}  Rc8 {[%clk 0:00:17]} 21. f5 {[%clk 0:01:05]}  Qa3 {[%clk 0:00:17]} 22. Nxc3 {[%clk 0:00:42]}  Rxc3 {[%clk 0:00:16]} 23. Rhe1 {[%clk 0:00:43]}  Rxb3+ {[%clk 0:00:13]} 24. cxb3 {[%clk 0:00:42]}  Qxb3+ {[%clk 0:00:13]} 25. Ka1 {[%clk 0:00:42]}  Qa3+ {[%clk 0:00:13]} 26. Kb1 {[%clk 0:00:41]}  Qb3+ {[%clk 0:00:13]} 27. Qb2 {[%clk 0:00:41]}  Qxb2+ {[%clk 0:00:13]} 28. Kxb2 {[%clk 0:00:42]}  Bxd6 {[%clk 0:00:11]} 29. Rd2 {[%clk 0:00:40]}  Rc8 {[%clk 0:00:07]} 30. fxg6 {[%clk 0:00:37]}  hxg6 {[%clk 0:00:07]} 31. Rf1 {[%clk 0:00:37]}  f6 {[%clk 0:00:07]} 32. h4 {[%clk 0:00:32]}  Rc4 {[%clk 0:00:06]} 33. Rfd1 {[%clk 0:00:31]}  Rc6 {[%clk 0:00:06]} 34. h5 {[%clk 0:00:31]}  gxh5 {[%clk 0:00:06]} 35. gxh5 {[%clk 0:00:32]}  Ke6 {[%clk 0:00:06]} 36. Rg1 {[%clk 0:00:28]}  Be5+ {[%clk 0:00:06]} 37. Ka2 {[%clk 0:00:28]}  Rc7 {[%clk 0:00:06]} 38. Rdg2 {[%clk 0:00:28]}  f5 {[%clk 0:00:04]} 39. Rg6+ {[%clk 0:00:26]}  Bf6 {[%clk 0:00:04]} 40. h6 {[%clk 0:00:26]}  gxh6 {[%clk 0:00:04]} 41. Rxh6 {[%clk 0:00:27]}  b4 {[%clk 0:00:04]} 42. Rgg6 {[%clk 0:00:25]}  Rf7 {[%clk 0:00:04]} 43. Kb3 {[%clk 0:00:26]}  a5 {[%clk 0:00:04]} 44. Ka4 {[%clk 0:00:27]}  f4 {[%clk 0:00:03]} 45. Rh3 {[%clk 0:00:27]}  Kf5 {[%clk 0:00:02]} 46. Rgh6 {[%clk 0:00:27]} 1-0


[Site "https://www.chess.com"]

[Event "Titled Tuesday Blitz April 05 Late 2022"]
[White "Smirnov, Pavel"]
[Black "Ozates, Tuna"]
[WhiteFideId "4123425"]
[BlackFideId "6354521"]
[WhiteElo "2539"]
[BlackElo "1887"]
[Result "1-0"]
[Round "04"]
[TimeControl "180+1"]
[Date "2022.04.05"]
[WhiteClock "0:01:55"]
[BlackClock "0:00:13"]

1. e4 {[%clk 0:03:00]}  c5 {[%clk 0:02:57]} 2. c3 {[%clk 0:03:00]}  d5 {[%clk 0:02:57]} 3. exd5 {[%clk 0:03:01]}  Nf6 {[%clk 0:02:58]} 4. d4 {[%clk 0:03:00]}  cxd4 {[%clk 0:02:57]} 5. cxd4 {[%clk 0:02:50]}  Nxd5 {[%clk 0:02:57]} 6. Nf3 {[%clk 0:02:48]}  Nc6 {[%clk 0:02:58]} 7. Nc3 {[%clk 0:02:48]}  Bg4 {[%clk 0:02:58]} 8. Qb3 {[%clk 0:02:47]}  Bxf3 {[%clk 0:02:58]} 9. gxf3 {[%clk 0:02:48]}  e6 {[%clk 0:02:58]} 10. Qxb7 {[%clk 0:02:48]}  Nxd4 {[%clk 0:02:58]} 11. Bb5+ {[%clk 0:02:48]}  Nxb5 {[%clk 0:02:58]} 12. Qc6+ {[%clk 0:02:48]}  Ke7 {[%clk 0:02:57]} 13. Qxb5 {[%clk 0:02:48]}  Qd7 {[%clk 0:02:52]} 14. Nxd5+ {[%clk 0:02:42]}  Qxd5 {[%clk 0:02:45]} 15. Qxd5 {[%clk 0:02:42]}  exd5 {[%clk 0:02:46]} 16. Be3 {[%clk 0:02:43]}  Ke6 {[%clk 0:02:40]} 17. O-O {[%clk 0:02:42]}  Bd6 {[%clk 0:02:34]} 18. Rfe1 {[%clk 0:02:39]}  Kf6 {[%clk 0:02:21]} 19. Rad1 {[%clk 0:02:33]}  Rhd8 {[%clk 0:02:16]} 20. Kg2 {[%clk 0:02:27]}  Be5 {[%clk 0:02:14]} 21. Bg5+ {[%clk 0:02:25]}  Kxg5 {[%clk 0:02:10]} 22. Rxe5+ {[%clk 0:02:25]}  Kf6 {[%clk 0:02:10]} 23. Rexd5 {[%clk 0:02:25]}  Rxd5 {[%clk 0:02:10]} 24. Rxd5 {[%clk 0:02:25]}  Rc8 {[%clk 0:02:06]} 25. Ra5 {[%clk 0:02:25]}  Rc7 {[%clk 0:01:56]} 26. b4 {[%clk 0:02:25]}  Rb7 {[%clk 0:01:52]} 27. a3 {[%clk 0:02:24]}  Ke6 {[%clk 0:01:51]} 28. Kg3 {[%clk 0:02:23]}  Rc7 {[%clk 0:01:44]} 29. Kg4 {[%clk 0:02:22]}  h6 {[%clk 0:01:43]} 30. f4 {[%clk 0:02:22]}  g6 {[%clk 0:01:40]} 31. Ra6+ {[%clk 0:02:18]}  Kd5 {[%clk 0:01:39]} 32. f5 {[%clk 0:02:15]}  Rc4+ {[%clk 0:01:34]} 33. f4 {[%clk 0:02:12]}  g5 {[%clk 0:01:32]} 34. Rxh6 {[%clk 0:02:10]}  gxf4 {[%clk 0:01:29]} 35. Rf6 {[%clk 0:02:09]}  Ke4 {[%clk 0:01:12]} 36. Rxf7 {[%clk 0:02:07]}  Ke3 {[%clk 0:01:11]} 37. Re7+ {[%clk 0:02:05]}  Kf2 {[%clk 0:01:10]} 38. f6 {[%clk 0:02:04]}  f3+ {[%clk 0:01:10]} 39. Kg5 {[%clk 0:02:03]}  Rc8 {[%clk 0:00:36]} 40. f7 {[%clk 0:02:02]}  Rf8 {[%clk 0:00:36]} 41. Kg6 {[%clk 0:01:59]}  Kg1 {[%clk 0:00:34]} 42. Re5 {[%clk 0:01:57]}  Kxh2 {[%clk 0:00:19]} 43. Rf5 {[%clk 0:01:56]}  Kg2 {[%clk 0:00:15]} 44. Kg7 {[%clk 0:01:56]}  Rxf7+ {[%clk 0:00:12]} 45. Kxf7 {[%clk 0:01:55]}  f2 {[%clk 0:00:13]} 46. Ke7 {[%clk 0:01:55]} 1-0


[Site "https://www.chess.com"]

[Event "Titled Tuesday Blitz April 05 Late 2022"]
[White "Suarez Uriel, Adrian"]
[Black "Nazaretyan, Tigran"]
[WhiteFideId "22230874"]
[BlackFideId "24162345"]
[WhiteElo "2491"]
[BlackElo "2613"]
[Result "0-1"]
[Round "04"]
[TimeControl "180+1"]
[Date "2022.04.06"]
[WhiteClock "0:00:48"]
[BlackClock "0:00:24"]

1. e4 {[%clk 0:03:00]}  c5 {[%clk 0:02:59]} 2. Nf3 {[%clk 0:03:00]}  Nc6 {[%clk 0:02:59]} 3. Bb5 {[%clk 0:02:59]}  g6 {[%clk 0:02:59]} 4. Bxc6 {[%clk 0:02:59]}  dxc6 {[%clk 0:02:58]} 5. O-O {[%clk 0:03:00]}  Bg7 {[%clk 0:02:59]} 6. d3 {[%clk 0:03:00]}  Nf6 {[%clk 0:02:59]} 7. h3 {[%clk 0:03:00]}  Nd7 {[%clk 0:02:58]} 8. Nc3 {[%clk 0:03:00]}  e5 {[%clk 0:02:57]} 9. Be3 {[%clk 0:03:00]}  b6 {[%clk 0:02:56]} 10. Qd2 {[%clk 0:03:01]}  h6 {[%clk 0:02:57]} 11. Nh2 {[%clk 0:02:59]}  Nf8 {[%clk 0:02:56]} 12. f4 {[%clk 0:02:59]}  exf4 {[%clk 0:02:57]} 13. Bxf4 {[%clk 0:03:00]}  Ne6 {[%clk 0:02:57]} 14. Be3 {[%clk 0:03:01]}  Nd4 {[%clk 0:02:55]} 15. Rae1 {[%clk 0:03:00]}  Be6 {[%clk 0:02:53]} 16. e5 {[%clk 0:02:58]}  Bxe5 {[%clk 0:02:33]} 17. Ne4 {[%clk 0:02:57]}  f5 {[%clk 0:02:26]} 18. Nc3 {[%clk 0:02:04]}  Qd6 {[%clk 0:02:18]} 19. Bf4 {[%clk 0:01:49]}  Bxf4 {[%clk 0:02:16]} 20. Rxf4 {[%clk 0:01:48]}  O-O-O {[%clk 0:02:09]} 21. a3 {[%clk 0:01:46]}  g5 {[%clk 0:02:09]} 22. Rff1 {[%clk 0:01:45]}  Rhe8 {[%clk 0:02:07]} 23. Qf2 {[%clk 0:01:35]}  Kb7 {[%clk 0:01:59]} 24. Nf3 {[%clk 0:01:32]}  Bc8 {[%clk 0:01:43]} 25. Nxd4 {[%clk 0:01:27]}  cxd4 {[%clk 0:01:43]} 26. Nb1 {[%clk 0:01:23]}  f4 {[%clk 0:01:40]} 27. Nd2 {[%clk 0:01:23]}  Re3 {[%clk 0:01:33]} 28. Nc4 {[%clk 0:01:23]}  Qd5 {[%clk 0:01:24]} 29. Nxe3 {[%clk 0:01:22]}  dxe3 {[%clk 0:01:23]} 30. Qf3 {[%clk 0:01:23]}  Qc5 {[%clk 0:01:15]} 31. Re2 {[%clk 0:01:20]}  Be6 {[%clk 0:01:10]} 32. Kh2 {[%clk 0:01:19]}  Rd6 {[%clk 0:00:57]} 33. Qh5 {[%clk 0:01:09]}  Bf5 {[%clk 0:00:52]} 34. g3 {[%clk 0:01:06]}  Qe5 {[%clk 0:00:50]} 35. gxf4 {[%clk 0:01:04]}  gxf4 {[%clk 0:00:50]} 36. Qf3 {[%clk 0:01:04]}  Rd4 {[%clk 0:00:44]} 37. Rxe3 {[%clk 0:00:53]}  fxe3+ {[%clk 0:00:36]} 38. Kh1 {[%clk 0:00:50]}  Be6 {[%clk 0:00:24]} 39. Re1 {[%clk 0:00:48]}  Bd5 {[%clk 0:00:24]} 0-1


[Site "https://www.chess.com"]

[Event "Titled Tuesday Blitz April 05 Late 2022"]
[White "Szente Varga, Fruzsina"]
[Black "Przybylski, Wojciech"]
[WhiteFideId "712264"]
[BlackFideId "1117599"]
[WhiteElo "1994"]
[BlackElo "2133"]
[Result "1/2-1/2"]
[Round "04"]
[TimeControl "180+1"]
[Date "2022.04.06"]
[WhiteClock "0:00:15"]
[BlackClock "0:00:08"]

1. e4 {[%clk 0:03:00]}  e5 {[%clk 0:02:59]} 2. Nf3 {[%clk 0:02:57]}  Nf6 {[%clk 0:02:58]} 3. Nc3 {[%clk 0:02:57]}  Nc6 {[%clk 0:02:58]} 4. d4 {[%clk 0:02:57]}  exd4 {[%clk 0:02:58]} 5. Nd5 {[%clk 0:02:58]}  h6 {[%clk 0:02:49]} 6. Nxd4 {[%clk 0:02:46]}  Nxd5 {[%clk 0:02:44]} 7. exd5 {[%clk 0:02:46]}  Nxd4 {[%clk 0:02:38]} 8. Qxd4 {[%clk 0:02:47]}  d6 {[%clk 0:02:38]} 9. Be2 {[%clk 0:02:40]}  Qf6 {[%clk 0:02:31]} 10. Bb5+ {[%clk 0:02:14]}  Bd7 {[%clk 0:02:25]} 11. Bxd7+ {[%clk 0:02:09]}  Kxd7 {[%clk 0:02:25]} 12. Qa4+ {[%clk 0:02:10]}  Kc8 {[%clk 0:02:10]} 13. O-O {[%clk 0:01:41]}  Be7 {[%clk 0:02:09]} 14. Re1 {[%clk 0:01:39]}  Kd8 {[%clk 0:01:50]} 15. Qb5 {[%clk 0:01:35]}  Rb8 {[%clk 0:01:47]} 16. Bd2 {[%clk 0:01:35]}  a6 {[%clk 0:01:44]} 17. Qb3 {[%clk 0:01:24]}  Re8 {[%clk 0:01:37]} 18. Bc3 {[%clk 0:01:24]}  Qg5 {[%clk 0:01:28]} 19. Qa4 {[%clk 0:01:21]}  Qxd5 {[%clk 0:01:22]} 20. Rad1 {[%clk 0:01:04]}  Qc6 {[%clk 0:01:20]} 21. Qg4 {[%clk 0:01:01]}  g6 {[%clk 0:00:50]} 22. Qf4 {[%clk 0:01:00]}  f5 {[%clk 0:00:08]} 23. Qxh6 {[%clk 0:00:57]}  Qd7 {[%clk 0:00:09]} 24. Qxg6 {[%clk 0:00:56]}  b5 {[%clk 0:00:09]} 25. Rxe7 {[%clk 0:00:52]}  Rxe7 {[%clk 0:00:09]} 26. Bf6 {[%clk 0:00:52]}  Kc8 {[%clk 0:00:09]} 27. Bxe7 {[%clk 0:00:49]}  Qxe7 {[%clk 0:00:10]} 28. Qxf5+ {[%clk 0:00:50]}  Kb7 {[%clk 0:00:10]} 29. Qd5+ {[%clk 0:00:50]}  Ka7 {[%clk 0:00:10]} 30. g3 {[%clk 0:00:48]}  Re8 {[%clk 0:00:10]} 31. Qc6 {[%clk 0:00:46]}  Rf8 {[%clk 0:00:10]} 32. c4 {[%clk 0:00:44]}  b4 {[%clk 0:00:09]} 33. c5 {[%clk 0:00:43]}  Qf7 {[%clk 0:00:08]} 34. Rf1 {[%clk 0:00:38]}  Rd8 {[%clk 0:00:08]} 35. cxd6 {[%clk 0:00:38]}  Rxd6 {[%clk 0:00:08]} 36. Qc5+ {[%clk 0:00:38]}  Rb6 {[%clk 0:00:08]} 37. Rc1 {[%clk 0:00:37]}  Kb7 {[%clk 0:00:07]} 38. Qc4 {[%clk 0:00:35]}  Qe7 {[%clk 0:00:07]} 39. h4 {[%clk 0:00:35]}  Re6 {[%clk 0:00:05]} 40. Qd5+ {[%clk 0:00:29]}  Kb8 {[%clk 0:00:05]} 41. Rd1 {[%clk 0:00:27]}  Rd6 {[%clk 0:00:04]} 42. Qg8+ {[%clk 0:00:22]}  Kb7 {[%clk 0:00:05]} 43. Rxd6 {[%clk 0:00:23]}  Qxd6 {[%clk 0:00:05]} 44. Qf7 {[%clk 0:00:18]}  Qd1+ {[%clk 0:00:03]} 45. Kg2 {[%clk 0:00:19]}  Qd4 {[%clk 0:00:03]} 46. Qf3+ {[%clk 0:00:19]}  Kb6 {[%clk 0:00:03]} 47. b3 {[%clk 0:00:20]}  c5 {[%clk 0:00:03]} 48. Qe3 {[%clk 0:00:21]}  Qd5+ {[%clk 0:00:03]} 49. Qf3 {[%clk 0:00:21]}  Qe5 {[%clk 0:00:03]} 50. h5 {[%clk 0:00:20]}  Qg5 {[%clk 0:00:03]} 51. g4 {[%clk 0:00:18]}  a5 {[%clk 0:00:03]} 52. Kg3 {[%clk 0:00:18]}  a4 {[%clk 0:00:03]} 53. Qf4 {[%clk 0:00:18]}  Qg7 {[%clk 0:00:03]} 54. Qd6+ {[%clk 0:00:18]}  Kb5 {[%clk 0:00:03]} 55. Qb8+ {[%clk 0:00:17]}  Kc6 {[%clk 0:00:03]} 56. Qa8+ {[%clk 0:00:17]}  Kd6 {[%clk 0:00:02]} 57. Qb8+ {[%clk 0:00:17]}  Kd5 {[%clk 0:00:02]} 58. bxa4 {[%clk 0:00:16]}  Qc3+ {[%clk 0:00:03]} 59. f3 {[%clk 0:00:15]}  Qe1+ {[%clk 0:00:03]} 60. Kh3 {[%clk 0:00:14]}  Qh1+ {[%clk 0:00:03]} 61. Kg3 {[%clk 0:00:14]}  Qe1+ {[%clk 0:00:03]} 62. Kf4 {[%clk 0:00:14]}  Qc1+ {[%clk 0:00:03]} 63. Kf5 {[%clk 0:00:14]}  Qc2+ {[%clk 0:00:03]} 64. Kf6 {[%clk 0:00:14]}  Qb2+ {[%clk 0:00:03]} 65. Kg5 {[%clk 0:00:13]}  Qd2+ {[%clk 0:00:03]} 66. f4 {[%clk 0:00:14]}  Qb2 {[%clk 0:00:02]} 67. Qe5+ {[%clk 0:00:12]}  Qxe5+ {[%clk 0:00:02]} 68. fxe5 {[%clk 0:00:13]}  c4 {[%clk 0:00:02]} 69. h6 {[%clk 0:00:13]}  c3 {[%clk 0:00:03]} 70. h7 {[%clk 0:00:14]}  c2 {[%clk 0:00:03]} 71. h8=Q {[%clk 0:00:14]}  c1=Q+ {[%clk 0:00:04]} 72. Kf5 {[%clk 0:00:14]}  Qf1+ {[%clk 0:00:04]} 73. Kg6 {[%clk 0:00:14]}  Qd3+ {[%clk 0:00:04]} 74. Kf7 {[%clk 0:00:14]}  Qc4 {[%clk 0:00:03]} 75. Qd8+ {[%clk 0:00:13]}  Kxe5+ {[%clk 0:00:03]} 76. Kg6 {[%clk 0:00:13]}  Qxg4+ {[%clk 0:00:03]} 77. Kh6 {[%clk 0:00:09]}  Qh3+ {[%clk 0:00:03]} 78. Kg5 {[%clk 0:00:09]}  Qf5+ {[%clk 0:00:03]} 79. Kh4 {[%clk 0:00:09]}  Qf4+ {[%clk 0:00:03]} 80. Kh5 {[%clk 0:00:09]}  Qh2+ {[%clk 0:00:03]} 81. Qh4 {[%clk 0:00:09]}  Qe2+ {[%clk 0:00:02]} 82. Qg4 {[%clk 0:00:09]}  Qxa2 {[%clk 0:00:02]} 83. Qxb4 {[%clk 0:00:07]}  Qf7+ {[%clk 0:00:02]} 84. Kg4 {[%clk 0:00:07]}  Qf5+ {[%clk 0:00:02]} 85. Kg3 {[%clk 0:00:08]}  Qg5+ {[%clk 0:00:03]} 86. Kf3 {[%clk 0:00:08]}  Qf5+ {[%clk 0:00:03]} 87. Ke3 {[%clk 0:00:09]}  Qh3+ {[%clk 0:00:03]} 88. Kd2 {[%clk 0:00:08]}  Qg2+ {[%clk 0:00:03]} 89. Kc3 {[%clk 0:00:09]}  Qf3+ {[%clk 0:00:04]} 90. Kc4 {[%clk 0:00:10]}  Qd5+ {[%clk 0:00:04]} 91. Kc3 {[%clk 0:00:09]}  Qf3+ {[%clk 0:00:04]} 92. Kb2 {[%clk 0:00:09]}  Qe2+ {[%clk 0:00:04]} 93. Kb3 {[%clk 0:00:10]}  Qd3+ {[%clk 0:00:04]} 94. Qc3+ {[%clk 0:00:11]}  Qxc3+ {[%clk 0:00:04]} 95. Kxc3 {[%clk 0:00:11]}  Kd5 {[%clk 0:00:05]} 96. Kb4 {[%clk 0:00:12]}  Kc6 {[%clk 0:00:06]} 97. a5 {[%clk 0:00:12]}  Kb7 {[%clk 0:00:06]} 98. Kb5 {[%clk 0:00:12]}  Ka7 {[%clk 0:00:06]} 99. a6 {[%clk 0:00:13]}  Ka8 {[%clk 0:00:07]} 100. Kb6 {[%clk 0:00:13]}  Kb8 {[%clk 0:00:07]} 101. a7+ {[%clk 0:00:14]}  Ka8 {[%clk 0:00:08]} 102. Ka6 {[%clk 0:00:15]} 1/2-1/2


[Site "https://www.chess.com"]